Workbook

Sheet 外字チェック処理
C2: 【CSV/Excelデータ使用外字チェック条件設定】 | J2: =TODAY() -> 2021-02-03
C4: チェックデータ名称 | M4: =文字イメージ作成!K2&"" -> 
M6: ※オープン時自動実行
C8: ※見出し行への対応 | G8: チェック項目選択
C9: チェック開始件数 | G9: 項目№ | H9: 項目名
C12: 特定キー項目№ | J12: 未登録外字のみ | K12: FALSE
J13: 外字すべて | K13: TRUE
C50: C:\つくばＩＴパートナー\HPアップ\業務向けExcelツール類\未アップ

Sheet 使用外字チェックリスト
C1: =IF(外字チェック処理!C5="","",外字チェック処理!C5) ->  | H1: =文字イメージ作成!J3 -> 【Excelデータ使用外字チェックリスト】 | AG1: =IF(COUNTA(D:D)-2=0,"外字使用はありません。",COUNTA(D:D)-2) -> 外字使用はありません。 | AV1: =NOW() -> 2021-02-03T11:38:12.170
B3: 行目 | C3: 特定キー | D3: 使用外字 | F3: 外字 | G3: 項目名 | H3: 内容
D4: 字 | E4: S_JIS | F4: 登録

Sheet 外字登録一覧表
B1: DESKTOP-Q46QERN | E1: 【外 字 登 録 一 覧 表】 | L1: =TODAY() -> 2021-02-03 | Q1: 691
E2: ※「外字エディタ」にて登録 | I2: =文字イメージ作成!$K$2&"" ->  | Q2: 643
B3: =MAX(A:A) -> 1880 | E3: フォント選択 | F3: HG丸ｺﾞｼｯｸM-PRO | K3: =COUNTIF(P:P,"○") -> 2 | M3: ↓ﾀﾞﾌﾞﾙｸﾘｯｸで選択
B4: SJIS | D4: JIS | F4: 漢字 | G4: JIS | I4: SJIS | K4: UNICODE | M4: 外字登録
B5: DEC | C5: HEX | D5: HEX | E5: DEC | G5: DEC | H5: HEX | I5: HEX | J5: DEC | K5: DEC | L5: HEX | M5: 入 | O5: 自 | P5: あ | Q5: 画像 容量
B6: 基本 | C6: DEC2HEX | D6: SJISTOJIS | E6: HEX2DEC | F6: CHAR | G6: CODE | H6: DEC2HEX | I6: SJIS_code | J6: HEX2DEC | K6: UNICODE | L6: DEC2HEX | M6: 力 | O6: 動 | P6: り
A7: =IF(D7="",A6,A6+1) -> 1 | B7: 61504 | C7: =DEC2HEX(B7) -> F040 | D7: =SJISTOJIS(C7) -> 7F21 | E7: =HEX2DEC(D7) -> 32545 | F7: =IFERROR(CHAR(E7),"範囲外") ->  | G7: =CODE(F7) -> 32545 | H7: =DEC2HEX(G7) -> 7F21 | I7: =SJIS_code(F7) -> F040 | J7: =HEX2DEC(I7) -> 61504 | K7: =IFERROR(_xlfn.UNICODE(F7),"") -> 57344 | L7: =IFERROR(DEC2HEX(K7),"") -> E000 | O7: ○ | P7: =IF(AND(M7="",O7=""),"","○") -> ○ | Q7: 826
A8: 2 | B8: 61505 | C8: F041 | D8: 7F22 | E8: 32546 | F8:  | G8: 32546 | H8: 7F22 | I8: F041 | J8: 61505 | K8: 57345 | L8: E001 | O8: ○ | P8: =IF(AND(M8="",O8=""),"","○") -> ○ | Q8: 800
A9: 3 | B9: 61506 | C9: F042 | D9: 7F23 | E9: 32547 | F9:  | G9: 32547 | H9: 7F23 | I9: F042 | J9: 61506 | K9: 57346 | L9: E002 | Q9: 643
A10: 4 | B10: 61507 | C10: F043 | D10: 7F24 | E10: 32548 | F10:  | G10: 32548 | H10: 7F24 | I10: F043 | J10: 61507 | K10: 57347 | L10: E003 | Q10: 691
A11: 5 | B11: 61508 | C11: F044 | D11: 7F25 | E11: 32549 | F11:  | G11: 32549 | H11: 7F25 | I11: F044 | J11: 61508 | K11: 57348 | L11: E004 | Q11: 691
A12: 6 | B12: 61509 | C12: F045 | D12: 7F26 | E12: 32550 | F12:  | G12: 32550 | H12: 7F26 | I12: F045 | J12: 61509 | K12: 57349 | L12: E005 | Q12: 691
A13: 7 | B13: 61510 | C13: F046 | D13: 7F27 | E13: 32551 | F13:  | G13: 32551 | H13: 7F27 | I13: F046 | J13: 61510 | K13: 57350 | L13: E006 | Q13: 691
A14: 8 | B14: 61511 | C14: F047 | D14: 7F28 | E14: 32552 | F14:  | G14: 32552 | H14: 7F28 | I14: F047 | J14: 61511 | K14: 57351 | L14: E007 | Q14: 691
A15: 9 | B15: 61512 | C15: F048 | D15: 7F29 | E15: 32553 | F15:  | G15: 32553 | H15: 7F29 | I15: F048 | J15: 61512 | K15: 57352 | L15: E008 | Q15: 691
A16: 10 | B16: 61513 | C16: F049 | D16: 7F2A | E16: 32554 | F16:  | G16: 32554 | H16: 7F2A | I16: F049 | J16: 61513 | K16: 57353 | L16: E009 | Q16: 691
A17: 11 | B17: 61514 | C17: F04A | D17: 7F2B | E17: 32555 | F17:  | G17: 32555 | H17: 7F2B | I17: F04A | J17: 61514 | K17: 57354 | L17: E00A | Q17: 691
A18: 12 | B18: 61515 | C18: F04B | D18: 7F2C | E18: 32556 | F18:  | G18: 32556 | H18: 7F2C | I18: F04B | J18: 61515 | K18: 57355 | L18: E00B | Q18: 691
A19: 13 | B19: 61516 | C19: F04C | D19: 7F2D | E19: 32557 | F19:  | G19: 32557 | H19: 7F2D | I19: F04C | J19: 61516 | K19: 57356 | L19: E00C | Q19: 691
A20: 14 | B20: 61517 | C20: F04D | D20: 7F2E | E20: 32558 | F20:  | G20: 32558 | H20: 7F2E | I20: F04D | J20: 61517 | K20: 57357 | L20: E00D | Q20: 691
A21: 15 | B21: 61518 | C21: F04E | D21: 7F2F | E21: 32559 | F21:  | G21: 32559 | H21: 7F2F | I21: F04E | J21: 61518 | K21: 57358 | L21: E00E | Q21: 691
A22: 16 | B22: 61519 | C22: F04F | D22: 7F30 | E22: 32560 | F22:  | G22: 32560 | H22: 7F30 | I22: F04F | J22: 61519 | K22: 57359 | L22: E00F | Q22: 691
A23: 17 | B23: 61520 | C23: F050 | D23: 7F31 | E23: 32561 | F23:  | G23: 32561 | H23: 7F31 | I23: F050 | J23: 61520 | K23: 57360 | L23: E010 | Q23: 691
A24: 18 | B24: 61521 | C24: F051 | D24: 7F32 | E24: 32562 | F24:  | G24: 32562 | H24: 7F32 | I24: F051 | J24: 61521 | K24: 57361 | L24: E011 | Q24: 691
A25: 19 | B25: 61522 | C25: F052 | D25: 7F33 | E25: 32563 | F25:  | G25: 32563 | H25: 7F33 | I25: F052 | J25: 61522 | K25: 57362 | L25: E012 | Q25: 691
A26: 20 | B26: 61523 | C26: F053 | D26: 7F34 | E26: 32564 | F26:  | G26: 32564 | H26: 7F34 | I26: F053 | J26: 61523 | K26: 57363 | L26: E013 | Q26: 691
A27: 21 | B27: 61524 | C27: F054 | D27: 7F35 | E27: 32565 | F27:  | G27: 32565 | H27: 7F35 | I27: F054 | J27: 61524 | K27: 57364 | L27: E014 | Q27: 691
A28: 22 | B28: 61525 | C28: F055 | D28: 7F36 | E28: 32566 | F28:  | G28: 32566 | H28: 7F36 | I28: F055 | J28: 61525 | K28: 57365 | L28: E015 | Q28: 691
A29: 23 | B29: 61526 | C29: F056 | D29: 7F37 | E29: 32567 | F29:  | G29: 32567 | H29: 7F37 | I29: F056 | J29: 61526 | K29: 57366 | L29: E016 | Q29: 691
A30: 24 | B30: 61527 | C30: F057 | D30: 7F38 | E30: 32568 | F30:  | G30: 32568 | H30: 7F38 | I30: F057 | J30: 61527 | K30: 57367 | L30: E017 | Q30: 691
A31: 25 | B31: 61528 | C31: F058 | D31: 7F39 | E31: 32569 | F31:  | G31: 32569 | H31: 7F39 | I31: F058 | J31: 61528 | K31: 57368 | L31: E018 | Q31: 691
A32: 26 | B32: 61529 | C32: F059 | D32: 7F3A | E32: 32570 | F32:  | G32: 32570 | H32: 7F3A | I32: F059 | J32: 61529 | K32: 57369 | L32: E019 | Q32: 691
A33: 27 | B33: 61530 | C33: F05A | D33: 7F3B | E33: 32571 | F33:  | G33: 32571 | H33: 7F3B | I33: F05A | J33: 61530 | K33: 57370 | L33: E01A | Q33: 691
A34: 28 | B34: 61531 | C34: F05B | D34: 7F3C | E34: 32572 | F34:  | G34: 32572 | H34: 7F3C | I34: F05B | J34: 61531 | K34: 57371 | L34: E01B | Q34: 691
A35: 29 | B35: 61532 | C35: F05C | D35: 7F3D | E35: 32573 | F35:  | G35: 32573 | H35: 7F3D | I35: F05C | J35: 61532 | K35: 57372 | L35: E01C | Q35: 691
A36: 30 | B36: 61533 | C36: F05D | D36: 7F3E | E36: 32574 | F36:  | G36: 32574 | H36: 7F3E | I36: F05D | J36: 61533 | K36: 57373 | L36: E01D | Q36: 691
A37: 31 | B37: 61534 | C37: F05E | D37: 7F3F | E37: 32575 | F37:  | G37: 32575 | H37: 7F3F | I37: F05E | J37: 61534 | K37: 57374 | L37: E01E | Q37: 691
A38: 32 | B38: 61535 | C38: F05F | D38: 7F40 | E38: 32576 | F38:  | G38: 32576 | H38: 7F40 | I38: F05F | J38: 61535 | K38: 57375 | L38: E01F | Q38: 691
A39: 33 | B39: 61536 | C39: F060 | D39: 7F41 | E39: 32577 | F39:  | G39: 32577 | H39: 7F41 | I39: F060 | J39: 61536 | K39: 57376 | L39: E020 | Q39: 691
A40: 34 | B40: 61537 | C40: F061 | D40: 7F42 | E40: 32578 | F40:  | G40: 32578 | H40: 7F42 | I40: F061 | J40: 61537 | K40: 57377 | L40: E021 | Q40: 691
A41: 35 | B41: 61538 | C41: F062 | D41: 7F43 | E41: 32579 | F41:  | G41: 32579 | H41: 7F43 | I41: F062 | J41: 61538 | K41: 57378 | L41: E022 | Q41: 691
A42: 36 | B42: 61539 | C42: F063 | D42: 7F44 | E42: 32580 | F42:  | G42: 32580 | H42: 7F44 | I42: F063 | J42: 61539 | K42: 57379 | L42: E023 | Q42: 691
A43: 37 | B43: 61540 | C43: F064 | D43: 7F45 | E43: 32581 | F43:  | G43: 32581 | H43: 7F45 | I43: F064 | J43: 61540 | K43: 57380 | L43: E024 | Q43: 691
A44: 38 | B44: 61541 | C44: F065 | D44: 7F46 | E44: 32582 | F44:  | G44: 32582 | H44: 7F46 | I44: F065 | J44: 61541 | K44: 57381 | L44: E025 | Q44: 691
A45: 39 | B45: 61542 | C45: F066 | D45: 7F47 | E45: 32583 | F45:  | G45: 32583 | H45: 7F47 | I45: F066 | J45: 61542 | K45: 57382 | L45: E026 | Q45: 691
A46: 40 | B46: 61543 | C46: F067 | D46: 7F48 | E46: 32584 | F46:  | G46: 32584 | H46: 7F48 | I46: F067 | J46: 61543 | K46: 57383 | L46: E027 | Q46: 691
A47: 41 | B47: 61544 | C47: F068 | D47: 7F49 | E47: 32585 | F47:  | G47: 32585 | H47: 7F49 | I47: F068 | J47: 61544 | K47: 57384 | L47: E028 | Q47: 691
A48: 42 | B48: 61545 | C48: F069 | D48: 7F4A | E48: 32586 | F48:  | G48: 32586 | H48: 7F4A | I48: F069 | J48: 61545 | K48: 57385 | L48: E029 | Q48: 691
A49: 43 | B49: 61546 | C49: F06A | D49: 7F4B | E49: 32587 | F49:  | G49: 32587 | H49: 7F4B | I49: F06A | J49: 61546 | K49: 57386 | L49: E02A | Q49: 691
A50: 44 | B50: 61547 | C50: F06B | D50: 7F4C | E50: 32588 | F50:  | G50: 32588 | H50: 7F4C | I50: F06B | J50: 61547 | K50: 57387 | L50: E02B | Q50: 691
A51: 45 | B51: 61548 | C51: F06C | D51: 7F4D | E51: 32589 | F51:  | G51: 32589 | H51: 7F4D | I51: F06C | J51: 61548 | K51: 57388 | L51: E02C | Q51: 691
A52: 46 | B52: 61549 | C52: F06D | D52: 7F4E | E52: 32590 | F52:  | G52: 32590 | H52: 7F4E | I52: F06D | J52: 61549 | K52: 57389 | L52: E02D | Q52: 691
A53: 47 | B53: 61550 | C53: F06E | D53: 7F4F | E53: 32591 | F53:  | G53: 32591 | H53: 7F4F | I53: F06E | J53: 61550 | K53: 57390 | L53: E02E | Q53: 691
A54: 48 | B54: 61551 | C54: F06F | D54: 7F50 | E54: 32592 | F54:  | G54: 32592 | H54: 7F50 | I54: F06F | J54: 61551 | K54: 57391 | L54: E02F | Q54: 691
A55: 48 | B55: 61552 | C55: F070 | F55: 範囲外
A56: 49 | B56: 61553 | C56: F071 | D56: 7F52 | E56: 32594 | F56:  | G56: 32594 | H56: 7F52 | I56: F071 | J56: 61553 | K56: 57393 | L56: E031 | Q56: 691
A57: 50 | B57: 61554 | C57: F072 | D57: 7F53 | E57: 32595 | F57:  | G57: 32595 | H57: 7F53 | I57: F072 | J57: 61554 | K57: 57394 | L57: E032 | Q57: 691
A58: 51 | B58: 61555 | C58: F073 | D58: 7F54 | E58: 32596 | F58:  | G58: 32596 | H58: 7F54 | I58: F073 | J58: 61555 | K58: 57395 | L58: E033 | Q58: 691
A59: 52 | B59: 61556 | C59: F074 | D59: 7F55 | E59: 32597 | F59:  | G59: 32597 | H59: 7F55 | I59: F074 | J59: 61556 | K59: 57396 | L59: E034 | Q59: 691
A60: 53 | B60: 61557 | C60: F075 | D60: 7F56 | E60: 32598 | F60:  | G60: 32598 | H60: 7F56 | I60: F075 | J60: 61557 | K60: 57397 | L60: E035 | Q60: 691
A61: 54 | B61: 61558 | C61: F076 | D61: 7F57 | E61: 32599 | F61:  | G61: 32599 | H61: 7F57 | I61: F076 | J61: 61558 | K61: 57398 | L61: E036 | Q61: 643
A62: 55 | B62: 61559 | C62: F077 | D62: 7F58 | E62: 32600 | F62:  | G62: 32600 | H62: 7F58 | I62: F077 | J62: 61559 | K62: 57399 | L62: E037 | Q62: 691
A63: 56 | B63: 61560 | C63: F078 | D63: 7F59 | E63: 32601 | F63:  | G63: 32601 | H63: 7F59 | I63: F078 | J63: 61560 | K63: 57400 | L63: E038 | Q63: 691
A64: 57 | B64: 61561 | C64: F079 | D64: 7F5A | E64: 32602 | F64:  | G64: 32602 | H64: 7F5A | I64: F079 | J64: 61561 | K64: 57401 | L64: E039 | Q64: 691
A65: 58 | B65: 61562 | C65: F07A | D65: 7F5B | E65: 32603 | F65:  | G65: 32603 | H65: 7F5B | I65: F07A | J65: 61562 | K65: 57402 | L65: E03A | Q65: 691
A66: 59 | B66: 61563 | C66: F07B | D66: 7F5C | E66: 32604 | F66:  | G66: 32604 | H66: 7F5C | I66: F07B | J66: 61563 | K66: 57403 | L66: E03B | Q66: 691
A67: 60 | B67: 61564 | C67: F07C | D67: 7F5D | E67: 32605 | F67:  | G67: 32605 | H67: 7F5D | I67: F07C | J67: 61564 | K67: 57404 | L67: E03C | Q67: 691
A68: 61 | B68: 61565 | C68: F07D | D68: 7F5E | E68: 32606 | F68:  | G68: 32606 | H68: 7F5E | I68: F07D | J68: 61565 | K68: 57405 | L68: E03D | Q68: 691
A69: 62 | B69: 61566 | C69: F07E | D69: 7F5F | E69: 32607 | F69:  | G69: 32607 | H69: 7F5F | I69: F07E | J69: 61566 | K69: 57406 | L69: E03E | Q69: 691
A70: 63 | B70: 61567 | C70: F07F | D70: 7F60 | E70: 32608 | F70:  | G70: 32608 | H70: 7F60 | I70: F080 | J70: 61568 | K70: 57407 | L70: E03F | Q70: 691
A71: =IF(D71="",A70,A70+1) -> 64 | B71: 61568 | C71: F080 | D71: 7F60 | E71: 32608 | F71:  | G71: 32608 | H71: 7F60 | I71: F080 | J71: 61568 | K71: 57407 | L71: E03F | Q71: 691
A72: 65 | B72: 61569 | C72: F081 | D72: 7F61 | E72: 32609 | F72:  | G72: 32609 | H72: 7F61 | I72: F081 | J72: 61569 | K72: 57408 | L72: E040 | P72: =IF(AND(M72="",O72=""),"","○") ->  | Q72: 691
A73: 66 | B73: 61570 | C73: F082 | D73: 7F62 | E73: 32610 | F73:  | G73: 32610 | H73: 7F62 | I73: F082 | J73: 61570 | K73: 57409 | L73: E041 | Q73: 691
A74: 67 | B74: 61571 | C74: F083 | D74: 7F63 | E74: 32611 | F74:  | G74: 32611 | H74: 7F63 | I74: F083 | J74: 61571 | K74: 57410 | L74: E042 | Q74: 691
A75: 68 | B75: 61572 | C75: F084 | D75: 7F64 | E75: 32612 | F75:  | G75: 32612 | H75: 7F64 | I75: F084 | J75: 61572 | K75: 57411 | L75: E043 | Q75: 691
A76: 69 | B76: 61573 | C76: F085 | D76: 7F65 | E76: 32613 | F76:  | G76: 32613 | H76: 7F65 | I76: F085 | J76: 61573 | K76: 57412 | L76: E044 | Q76: 691
A77: 70 | B77: 61574 | C77: F086 | D77: 7F66 | E77: 32614 | F77:  | G77: 32614 | H77: 7F66 | I77: F086 | J77: 61574 | K77: 57413 | L77: E045 | Q77: 691
A78: 71 | B78: 61575 | C78: F087 | D78: 7F67 | E78: 32615 | F78:  | G78: 32615 | H78: 7F67 | I78: F087 | J78: 61575 | K78: 57414 | L78: E046 | Q78: 691
A79: 72 | B79: 61576 | C79: F088 | D79: 7F68 | E79: 32616 | F79:  | G79: 32616 | H79: 7F68 | I79: F088 | J79: 61576 | K79: 57415 | L79: E047 | Q79: 691
A80: 73 | B80: 61577 | C80: F089 | D80: 7F69 | E80: 32617 | F80:  | G80: 32617 | H80: 7F69 | I80: F089 | J80: 61577 | K80: 57416 | L80: E048 | Q80: 691
A81: 74 | B81: 61578 | C81: F08A | D81: 7F6A | E81: 32618 | F81:  | G81: 32618 | H81: 7F6A | I81: F08A | J81: 61578 | K81: 57417 | L81: E049 | Q81: 691
A82: 75 | B82: 61579 | C82: F08B | D82: 7F6B | E82: 32619 | F82:  | G82: 32619 | H82: 7F6B | I82: F08B | J82: 61579 | K82: 57418 | L82: E04A | Q82: 691
A83: 76 | B83: 61580 | C83: F08C | D83: 7F6C | E83: 32620 | F83:  | G83: 32620 | H83: 7F6C | I83: F08C | J83: 61580 | K83: 57419 | L83: E04B | Q83: 691
A84: 77 | B84: 61581 | C84: F08D | D84: 7F6D | E84: 32621 | F84:  | G84: 32621 | H84: 7F6D | I84: F08D | J84: 61581 | K84: 57420 | L84: E04C | Q84: 691
A85: 78 | B85: 61582 | C85: F08E | D85: 7F6E | E85: 32622 | F85:  | G85: 32622 | H85: 7F6E | I85: F08E | J85: 61582 | K85: 57421 | L85: E04D | Q85: 691
A86: 79 | B86: 61583 | C86: F08F | D86: 7F6F | E86: 32623 | F86:  | G86: 32623 | H86: 7F6F | I86: F08F | J86: 61583 | K86: 57422 | L86: E04E | Q86: 691
A87: 80 | B87: 61584 | C87: F090 | D87: 7F70 | E87: 32624 | F87:  | G87: 32624 | H87: 7F70 | I87: F090 | J87: 61584 | K87: 57423 | L87: E04F | Q87: 691
A88: 81 | B88: 61585 | C88: F091 | D88: 7F71 | E88: 32625 | F88:  | G88: 32625 | H88: 7F71 | I88: F091 | J88: 61585 | K88: 57424 | L88: E050 | Q88: 691
A89: 82 | B89: 61586 | C89: F092 | D89: 7F72 | E89: 32626 | F89:  | G89: 32626 | H89: 7F72 | I89: F092 | J89: 61586 | K89: 57425 | L89: E051 | Q89: 691
A90: 83 | B90: 61587 | C90: F093 | D90: 7F73 | E90: 32627 | F90:  | G90: 32627 | H90: 7F73 | I90: F093 | J90: 61587 | K90: 57426 | L90: E052 | Q90: 691
A91: 84 | B91: 61588 | C91: F094 | D91: 7F74 | E91: 32628 | F91:  | G91: 32628 | H91: 7F74 | I91: F094 | J91: 61588 | K91: 57427 | L91: E053 | Q91: 691
A92: 85 | B92: 61589 | C92: F095 | D92: 7F75 | E92: 32629 | F92:  | G92: 32629 | H92: 7F75 | I92: F095 | J92: 61589 | K92: 57428 | L92: E054 | Q92: 691
A93: 86 | B93: 61590 | C93: F096 | D93: 7F76 | E93: 32630 | F93:  | G93: 32630 | H93: 7F76 | I93: F096 | J93: 61590 | K93: 57429 | L93: E055 | Q93: 691
A94: 87 | B94: 61591 | C94: F097 | D94: 7F77 | E94: 32631 | F94:  | G94: 32631 | H94: 7F77 | I94: F097 | J94: 61591 | K94: 57430 | L94: E056 | Q94: 691
A95: 88 | B95: 61592 | C95: F098 | D95: 7F78 | E95: 32632 | F95:  | G95: 32632 | H95: 7F78 | I95: F098 | J95: 61592 | K95: 57431 | L95: E057 | Q95: 691
A96: 89 | B96: 61593 | C96: F099 | D96: 7F79 | E96: 32633 | F96:  | G96: 32633 | H96: 7F79 | I96: F099 | J96: 61593 | K96: 57432 | L96: E058 | Q96: 691
A97: 90 | B97: 61594 | C97: F09A | D97: 7F7A | E97: 32634 | F97:  | G97: 32634 | H97: 7F7A | I97: F09A | J97: 61594 | K97: 57433 | L97: E059 | Q97: 691
A98: 91 | B98: 61595 | C98: F09B | D98: 7F7B | E98: 32635 | F98:  | G98: 32635 | H98: 7F7B | I98: F09B | J98: 61595 | K98: 57434 | L98: E05A | Q98: 691
A99: 92 | B99: 61596 | C99: F09C | D99: 7F7C | E99: 32636 | F99:  | G99: 32636 | H99: 7F7C | I99: F09C | J99: 61596 | K99: 57435 | L99: E05B | Q99: 691
A100: 93 | B100: 61597 | C100: F09D | D100: 7F7D | E100: 32637 | F100:  | G100: 32637 | H100: 7F7D | I100: F09D | J100: 61597 | K100: 57436 | L100: E05C | Q100: 691
A101: 94 | B101: 61598 | C101: F09E | D101: 7F7E | E101: 32638 | F101:  | G101: 32638 | H101: 7F7E | I101: F09E | J101: 61598 | K101: 57437 | L101: E05D | Q101: 691
A102: 95 | B102: 61599 | C102: F09F | D102: 8021 | E102: 32801 | F102:  | G102: 32801 | H102: 8021 | I102: F09F | J102: 61599 | K102: 57438 | L102: E05E | Q102: 691
A103: 96 | B103: 61600 | C103: F0A0 | D103: 8022 | E103: 32802 | F103:  | G103: 32802 | H103: 8022 | I103: F0A0 | J103: 61600 | K103: 57439 | L103: E05F | Q103: 691
A104: 97 | B104: 61601 | C104: F0A1 | D104: 8023 | E104: 32803 | F104:  | G104: 32803 | H104: 8023 | I104: F0A1 | J104: 61601 | K104: 57440 | L104: E060 | Q104: 691
A105: 98 | B105: 61602 | C105: F0A2 | D105: 8024 | E105: 32804 | F105:  | G105: 32804 | H105: 8024 | I105: F0A2 | J105: 61602 | K105: 57441 | L105: E061 | Q105: 691
A106: 99 | B106: 61603 | C106: F0A3 | D106: 8025 | E106: 32805 | F106:  | G106: 32805 | H106: 8025 | I106: F0A3 | J106: 61603 | K106: 57442 | L106: E062 | Q106: 691
A107: 100 | B107: 61604 | C107: F0A4 | D107: 8026 | E107: 32806 | F107:  | G107: 32806 | H107: 8026 | I107: F0A4 | J107: 61604 | K107: 57443 | L107: E063 | Q107: 691
A108: 101 | B108: 61605 | C108: F0A5 | D108: 8027 | E108: 32807 | F108:  | G108: 32807 | H108: 8027 | I108: F0A5 | J108: 61605 | K108: 57444 | L108: E064 | Q108: 691
A109: 102 | B109: 61606 | C109: F0A6 | D109: 8028 | E109: 32808 | F109:  | G109: 32808 | H109: 8028 | I109: F0A6 | J109: 61606 | K109: 57445 | L109: E065 | Q109: 691
A110: 103 | B110: 61607 | C110: F0A7 | D110: 8029 | E110: 32809 | F110:  | G110: 32809 | H110: 8029 | I110: F0A7 | J110: 61607 | K110: 57446 | L110: E066 | Q110: 691
A111: 104 | B111: 61608 | C111: F0A8 | D111: 802A | E111: 32810 | F111:  | G111: 32810 | H111: 802A | I111: F0A8 | J111: 61608 | K111: 57447 | L111: E067 | Q111: 691
A112: 105 | B112: 61609 | C112: F0A9 | D112: 802B | E112: 32811 | F112:  | G112: 32811 | H112: 802B | I112: F0A9 | J112: 61609 | K112: 57448 | L112: E068 | Q112: 691
A113: 106 | B113: 61610 | C113: F0AA | D113: 802C | E113: 32812 | F113:  | G113: 32812 | H113: 802C | I113: F0AA | J113: 61610 | K113: 57449 | L113: E069 | Q113: 691
A114: 107 | B114: 61611 | C114: F0AB | D114: 802D | E114: 32813 | F114:  | G114: 32813 | H114: 802D | I114: F0AB | J114: 61611 | K114: 57450 | L114: E06A | Q114: 691
A115: 108 | B115: 61612 | C115: F0AC | D115: 802E | E115: 32814 | F115:  | G115: 32814 | H115: 802E | I115: F0AC | J115: 61612 | K115: 57451 | L115: E06B | Q115: 691
A116: 109 | B116: 61613 | C116: F0AD | D116: 802F | E116: 32815 | F116:  | G116: 32815 | H116: 802F | I116: F0AD | J116: 61613 | K116: 57452 | L116: E06C | Q116: 691
A117: 110 | B117: 61614 | C117: F0AE | D117: 8030 | E117: 32816 | F117:  | G117: 32816 | H117: 8030 | I117: F0AE | J117: 61614 | K117: 57453 | L117: E06D | Q117: 691
A118: 111 | B118: 61615 | C118: F0AF | D118: 8031 | E118: 32817 | F118:  | G118: 32817 | H118: 8031 | I118: F0AF | J118: 61615 | K118: 57454 | L118: E06E | Q118: 691
A119: 112 | B119: 61616 | C119: F0B0 | D119: 8032 | E119: 32818 | F119:  | G119: 32818 | H119: 8032 | I119: F0B0 | J119: 61616 | K119: 57455 | L119: E06F | Q119: 691
A120: 113 | B120: 61617 | C120: F0B1 | D120: 8033 | E120: 32819 | F120:  | G120: 32819 | H120: 8033 | I120: F0B1 | J120: 61617 | K120: 57456 | L120: E070 | Q120: 691
A121: 114 | B121: 61618 | C121: F0B2 | D121: 8034 | E121: 32820 | F121:  | G121: 32820 | H121: 8034 | I121: F0B2 | J121: 61618 | K121: 57457 | L121: E071 | Q121: 691
A122: 115 | B122: 61619 | C122: F0B3 | D122: 8035 | E122: 32821 | F122:  | G122: 32821 | H122: 8035 | I122: F0B3 | J122: 61619 | K122: 57458 | L122: E072 | Q122: 691
A123: 116 | B123: 61620 | C123: F0B4 | D123: 8036 | E123: 32822 | F123:  | G123: 32822 | H123: 8036 | I123: F0B4 | J123: 61620 | K123: 57459 | L123: E073 | Q123: 691
A124: 117 | B124: 61621 | C124: F0B5 | D124: 8037 | E124: 32823 | F124:  | G124: 32823 | H124: 8037 | I124: F0B5 | J124: 61621 | K124: 57460 | L124: E074 | Q124: 691
A125: 118 | B125: 61622 | C125: F0B6 | D125: 8038 | E125: 32824 | F125:  | G125: 32824 | H125: 8038 | I125: F0B6 | J125: 61622 | K125: 57461 | L125: E075 | Q125: 691
A126: 119 | B126: 61623 | C126: F0B7 | D126: 8039 | E126: 32825 | F126:  | G126: 32825 | H126: 8039 | I126: F0B7 | J126: 61623 | K126: 57462 | L126: E076 | Q126: 691
A127: 120 | B127: 61624 | C127: F0B8 | D127: 803A | E127: 32826 | F127:  | G127: 32826 | H127: 803A | I127: F0B8 | J127: 61624 | K127: 57463 | L127: E077 | Q127: 691
A128: 121 | B128: 61625 | C128: F0B9 | D128: 803B | E128: 32827 | F128:  | G128: 32827 | H128: 803B | I128: F0B9 | J128: 61625 | K128: 57464 | L128: E078 | Q128: 691
A129: 122 | B129: 61626 | C129: F0BA | D129: 803C | E129: 32828 | F129:  | G129: 32828 | H129: 803C | I129: F0BA | J129: 61626 | K129: 57465 | L129: E079 | Q129: 691
A130: 123 | B130: 61627 | C130: F0BB | D130: 803D | E130: 32829 | F130:  | G130: 32829 | H130: 803D | I130: F0BB | J130: 61627 | K130: 57466 | L130: E07A | Q130: 691
A131: 124 | B131: 61628 | C131: F0BC | D131: 803E | E131: 32830 | F131:  | G131: 32830 | H131: 803E | I131: F0BC | J131: 61628 | K131: 57467 | L131: E07B | Q131: 691
A132: 125 | B132: 61629 | C132: F0BD | D132: 803F | E132: 32831 | F132:  | G132: 32831 | H132: 803F | I132: F0BD | J132: 61629 | K132: 57468 | L132: E07C | Q132: 691
A133: 126 | B133: 61630 | C133: F0BE | D133: 8040 | E133: 32832 | F133:  | G133: 32832 | H133: 8040 | I133: F0BE | J133: 61630 | K133: 57469 | L133: E07D | Q133: 691
A134: 127 | B134: 61631 | C134: F0BF | D134: 8041 | E134: 32833 | F134:  | G134: 32833 | H134: 8041 | I134: F0BF | J134: 61631 | K134: 57470 | L134: E07E | Q134: 691
A135: =IF(D135="",A134,A134+1) -> 128 | B135: 61632 | C135: F0C0 | D135: 8042 | E135: 32834 | F135:  | G135: 32834 | H135: 8042 | I135: F0C0 | J135: 61632 | K135: 57471 | L135: E07F | Q135: 691
A136: 129 | B136: 61633 | C136: F0C1 | D136: 8043 | E136: 32835 | F136:  | G136: 32835 | H136: 8043 | I136: F0C1 | J136: 61633 | K136: 57472 | L136: E080 | P136: =IF(AND(M136="",O136=""),"","○") ->  | Q136: 691
A137: 130 | B137: 61634 | C137: F0C2 | D137: 8044 | E137: 32836 | F137:  | G137: 32836 | H137: 8044 | I137: F0C2 | J137: 61634 | K137: 57473 | L137: E081 | Q137: 691
A138: 131 | B138: 61635 | C138: F0C3 | D138: 8045 | E138: 32837 | F138:  | G138: 32837 | H138: 8045 | I138: F0C3 | J138: 61635 | K138: 57474 | L138: E082 | Q138: 691
A139: 132 | B139: 61636 | C139: F0C4 | D139: 8046 | E139: 32838 | F139:  | G139: 32838 | H139: 8046 | I139: F0C4 | J139: 61636 | K139: 57475 | L139: E083 | Q139: 691
A140: 133 | B140: 61637 | C140: F0C5 | D140: 8047 | E140: 32839 | F140:  | G140: 32839 | H140: 8047 | I140: F0C5 | J140: 61637 | K140: 57476 | L140: E084 | Q140: 691
A141: 134 | B141: 61638 | C141: F0C6 | D141: 8048 | E141: 32840 | F141:  | G141: 32840 | H141: 8048 | I141: F0C6 | J141: 61638 | K141: 57477 | L141: E085 | Q141: 691
A142: 135 | B142: 61639 | C142: F0C7 | D142: 8049 | E142: 32841 | F142:  | G142: 32841 | H142: 8049 | I142: F0C7 | J142: 61639 | K142: 57478 | L142: E086 | Q142: 691
A143: 136 | B143: 61640 | C143: F0C8 | D143: 804A | E143: 32842 | F143:  | G143: 32842 | H143: 804A | I143: F0C8 | J143: 61640 | K143: 57479 | L143: E087 | Q143: 691
A144: 137 | B144: 61641 | C144: F0C9 | D144: 804B | E144: 32843 | F144:  | G144: 32843 | H144: 804B | I144: F0C9 | J144: 61641 | K144: 57480 | L144: E088 | Q144: 691
A145: 138 | B145: 61642 | C145: F0CA | D145: 804C | E145: 32844 | F145:  | G145: 32844 | H145: 804C | I145: F0CA | J145: 61642 | K145: 57481 | L145: E089 | Q145: 691
A146: 139 | B146: 61643 | C146: F0CB | D146: 804D | E146: 32845 | F146:  | G146: 32845 | H146: 804D | I146: F0CB | J146: 61643 | K146: 57482 | L146: E08A | Q146: 691
A147: 140 | B147: 61644 | C147: F0CC | D147: 804E | E147: 32846 | F147:  | G147: 32846 | H147: 804E | I147: F0CC | J147: 61644 | K147: 57483 | L147: E08B | Q147: 691
A148: 141 | B148: 61645 | C148: F0CD | D148: 804F | E148: 32847 | F148:  | G148: 32847 | H148: 804F | I148: F0CD | J148: 61645 | K148: 57484 | L148: E08C | Q148: 691
A149: 142 | B149: 61646 | C149: F0CE | D149: 8050 | E149: 32848 | F149:  | G149: 32848 | H149: 8050 | I149: F0CE | J149: 61646 | K149: 57485 | L149: E08D | Q149: 691
A150: 143 | B150: 61647 | C150: F0CF | D150: 8051 | E150: 32849 | F150:  | G150: 32849 | H150: 8051 | I150: F0CF | J150: 61647 | K150: 57486 | L150: E08E | Q150: 691
A151: 144 | B151: 61648 | C151: F0D0 | D151: 8052 | E151: 32850 | F151:  | G151: 32850 | H151: 8052 | I151: F0D0 | J151: 61648 | K151: 57487 | L151: E08F | Q151: 691
A152: 145 | B152: 61649 | C152: F0D1 | D152: 8053 | E152: 32851 | F152:  | G152: 32851 | H152: 8053 | I152: F0D1 | J152: 61649 | K152: 57488 | L152: E090 | Q152: 691
A153: 146 | B153: 61650 | C153: F0D2 | D153: 8054 | E153: 32852 | F153:  | G153: 32852 | H153: 8054 | I153: F0D2 | J153: 61650 | K153: 57489 | L153: E091 | Q153: 691
A154: 147 | B154: 61651 | C154: F0D3 | D154: 8055 | E154: 32853 | F154:  | G154: 32853 | H154: 8055 | I154: F0D3 | J154: 61651 | K154: 57490 | L154: E092 | Q154: 691
A155: 148 | B155: 61652 | C155: F0D4 | D155: 8056 | E155: 32854 | F155:  | G155: 32854 | H155: 8056 | I155: F0D4 | J155: 61652 | K155: 57491 | L155: E093 | Q155: 691
A156: 149 | B156: 61653 | C156: F0D5 | D156: 8057 | E156: 32855 | F156:  | G156: 32855 | H156: 8057 | I156: F0D5 | J156: 61653 | K156: 57492 | L156: E094 | Q156: 691
A157: 150 | B157: 61654 | C157: F0D6 | D157: 8058 | E157: 32856 | F157:  | G157: 32856 | H157: 8058 | I157: F0D6 | J157: 61654 | K157: 57493 | L157: E095 | Q157: 691
A158: 151 | B158: 61655 | C158: F0D7 | D158: 8059 | E158: 32857 | F158:  | G158: 32857 | H158: 8059 | I158: F0D7 | J158: 61655 | K158: 57494 | L158: E096 | Q158: 691
A159: 152 | B159: 61656 | C159: F0D8 | D159: 805A | E159: 32858 | F159:  | G159: 32858 | H159: 805A | I159: F0D8 | J159: 61656 | K159: 57495 | L159: E097 | Q159: 691
A160: 153 | B160: 61657 | C160: F0D9 | D160: 805B | E160: 32859 | F160:  | G160: 32859 | H160: 805B | I160: F0D9 | J160: 61657 | K160: 57496 | L160: E098 | Q160: 691
A161: 154 | B161: 61658 | C161: F0DA | D161: 805C | E161: 32860 | F161:  | G161: 32860 | H161: 805C | I161: F0DA | J161: 61658 | K161: 57497 | L161: E099 | Q161: 691
A162: 155 | B162: 61659 | C162: F0DB | D162: 805D | E162: 32861 | F162:  | G162: 32861 | H162: 805D | I162: F0DB | J162: 61659 | K162: 57498 | L162: E09A | Q162: 691
A163: 156 | B163: 61660 | C163: F0DC | D163: 805E | E163: 32862 | F163:  | G163: 32862 | H163: 805E | I163: F0DC | J163: 61660 | K163: 57499 | L163: E09B | Q163: 691
A164: 157 | B164: 61661 | C164: F0DD | D164: 805F | E164: 32863 | F164:  | G164: 32863 | H164: 805F | I164: F0DD | J164: 61661 | K164: 57500 | L164: E09C | Q164: 691
A165: 158 | B165: 61662 | C165: F0DE | D165: 8060 | E165: 32864 | F165:  | G165: 32864 | H165: 8060 | I165: F0DE | J165: 61662 | K165: 57501 | L165: E09D | Q165: 691
A166: 159 | B166: 61663 | C166: F0DF | D166: 8061 | E166: 32865 | F166:  | G166: 32865 | H166: 8061 | I166: F0DF | J166: 61663 | K166: 57502 | L166: E09E | Q166: 691
A167: 160 | B167: 61664 | C167: F0E0 | D167: 8062 | E167: 32866 | F167:  | G167: 32866 | H167: 8062 | I167: F0E0 | J167: 61664 | K167: 57503 | L167: E09F | Q167: 691
A168: 161 | B168: 61665 | C168: F0E1 | D168: 8063 | E168: 32867 | F168:  | G168: 32867 | H168: 8063 | I168: F0E1 | J168: 61665 | K168: 57504 | L168: E0A0 | Q168: 691
A169: 162 | B169: 61666 | C169: F0E2 | D169: 8064 | E169: 32868 | F169:  | G169: 32868 | H169: 8064 | I169: F0E2 | J169: 61666 | K169: 57505 | L169: E0A1 | Q169: 691
A170: 163 | B170: 61667 | C170: F0E3 | D170: 8065 | E170: 32869 | F170:  | G170: 32869 | H170: 8065 | I170: F0E3 | J170: 61667 | K170: 57506 | L170: E0A2 | Q170: 691
A171: 164 | B171: 61668 | C171: F0E4 | D171: 8066 | E171: 32870 | F171:  | G171: 32870 | H171: 8066 | I171: F0E4 | J171: 61668 | K171: 57507 | L171: E0A3 | Q171: 691
A172: 165 | B172: 61669 | C172: F0E5 | D172: 8067 | E172: 32871 | F172:  | G172: 32871 | H172: 8067 | I172: F0E5 | J172: 61669 | K172: 57508 | L172: E0A4 | Q172: 691
A173: 166 | B173: 61670 | C173: F0E6 | D173: 8068 | E173: 32872 | F173:  | G173: 32872 | H173: 8068 | I173: F0E6 | J173: 61670 | K173: 57509 | L173: E0A5 | Q173: 691
A174: 167 | B174: 61671 | C174: F0E7 | D174: 8069 | E174: 32873 | F174:  | G174: 32873 | H174: 8069 | I174: F0E7 | J174: 61671 | K174: 57510 | L174: E0A6 | Q174: 691
A175: 168 | B175: 61672 | C175: F0E8 | D175: 806A | E175: 32874 | F175:  | G175: 32874 | H175: 806A | I175: F0E8 | J175: 61672 | K175: 57511 | L175: E0A7 | Q175: 691
A176: 169 | B176: 61673 | C176: F0E9 | D176: 806B | E176: 32875 | F176:  | G176: 32875 | H176: 806B | I176: F0E9 | J176: 61673 | K176: 57512 | L176: E0A8 | Q176: 691
A177: 170 | B177: 61674 | C177: F0EA | D177: 806C | E177: 32876 | F177:  | G177: 32876 | H177: 806C | I177: F0EA | J177: 61674 | K177: 57513 | L177: E0A9 | Q177: 691
A178: 171 | B178: 61675 | C178: F0EB | D178: 806D | E178: 32877 | F178:  | G178: 32877 | H178: 806D | I178: F0EB | J178: 61675 | K178: 57514 | L178: E0AA | Q178: 691
A179: 172 | B179: 61676 | C179: F0EC | D179: 806E | E179: 32878 | F179:  | G179: 32878 | H179: 806E | I179: F0EC | J179: 61676 | K179: 57515 | L179: E0AB | Q179: 691
A180: 173 | B180: 61677 | C180: F0ED | D180: 806F | E180: 32879 | F180:  | G180: 32879 | H180: 806F | I180: F0ED | J180: 61677 | K180: 57516 | L180: E0AC | Q180: 691
A181: 174 | B181: 61678 | C181: F0EE | D181: 8070 | E181: 32880 | F181:  | G181: 32880 | H181: 8070 | I181: F0EE | J181: 61678 | K181: 57517 | L181: E0AD | Q181: 691
A182: 175 | B182: 61679 | C182: F0EF | D182: 8071 | E182: 32881 | F182:  | G182: 32881 | H182: 8071 | I182: F0EF | J182: 61679 | K182: 57518 | L182: E0AE | Q182: 691
A183: 176 | B183: 61680 | C183: F0F0 | D183: 8072 | E183: 32882 | F183:  | G183: 32882 | H183: 8072 | I183: F0F0 | J183: 61680 | K183: 57519 | L183: E0AF | Q183: 691
A184: 177 | B184: 61681 | C184: F0F1 | D184: 8073 | E184: 32883 | F184:  | G184: 32883 | H184: 8073 | I184: F0F1 | J184: 61681 | K184: 57520 | L184: E0B0 | Q184: 691
A185: 178 | B185: 61682 | C185: F0F2 | D185: 8074 | E185: 32884 | F185:  | G185: 32884 | H185: 8074 | I185: F0F2 | J185: 61682 | K185: 57521 | L185: E0B1 | Q185: 691
A186: 179 | B186: 61683 | C186: F0F3 | D186: 8075 | E186: 32885 | F186:  | G186: 32885 | H186: 8075 | I186: F0F3 | J186: 61683 | K186: 57522 | L186: E0B2 | Q186: 691
A187: 180 | B187: 61684 | C187: F0F4 | D187: 8076 | E187: 32886 | F187:  | G187: 32886 | H187: 8076 | I187: F0F4 | J187: 61684 | K187: 57523 | L187: E0B3 | Q187: 691
A188: 181 | B188: 61685 | C188: F0F5 | D188: 8077 | E188: 32887 | F188:  | G188: 32887 | H188: 8077 | I188: F0F5 | J188: 61685 | K188: 57524 | L188: E0B4 | Q188: 691
A189: 182 | B189: 61686 | C189: F0F6 | D189: 8078 | E189: 32888 | F189:  | G189: 32888 | H189: 8078 | I189: F0F6 | J189: 61686 | K189: 57525 | L189: E0B5 | Q189: 691
A190: 183 | B190: 61687 | C190: F0F7 | D190: 8079 | E190: 32889 | F190:  | G190: 32889 | H190: 8079 | I190: F0F7 | J190: 61687 | K190: 57526 | L190: E0B6 | Q190: 691
A191: 184 | B191: 61688 | C191: F0F8 | D191: 807A | E191: 32890 | F191:  | G191: 32890 | H191: 807A | I191: F0F8 | J191: 61688 | K191: 57527 | L191: E0B7 | Q191: 691
A192: 185 | B192: 61689 | C192: F0F9 | D192: 807B | E192: 32891 | F192:  | G192: 32891 | H192: 807B | I192: F0F9 | J192: 61689 | K192: 57528 | L192: E0B8 | Q192: 691
A193: 186 | B193: 61690 | C193: F0FA | D193: 807C | E193: 32892 | F193:  | G193: 32892 | H193: 807C | I193: F0FA | J193: 61690 | K193: 57529 | L193: E0B9 | Q193: 691
A194: 187 | B194: 61691 | C194: F0FB | D194: 807D | E194: 32893 | F194:  | G194: 32893 | H194: 807D | I194: F0FB | J194: 61691 | K194: 57530 | L194: E0BA | Q194: 643
A195: 188 | B195: 61692 | C195: F0FC | D195: 807E | E195: 32894 | F195:  | G195: 32894 | H195: 807E | I195: F0FC | J195: 61692 | K195: 57531 | L195: E0BB | Q195: 691
A196: 188 | B196: 61693 | C196: F0FD | F196: 範囲外
A197: 188 | B197: 61694 | C197: F0FE | F197: 範囲外
A198: 188 | B198: 61695 | C198: F0FF | F198: 範囲外
A199: =IF(D199="",A198,A198+1) -> 188 | B199: 61696 | C199: F100 | F199: 範囲外
A200: 188 | B200: 61697 | C200: F101 | F200: 範囲外
... 2302 more rows

Sheet 文字イメージ作成 (hidden)
H1: 657 | I1: =COUNTIF(外字登録一覧表!$Q$7:$Q$2499,文字イメージ作成!H1) -> 0 | J1: 2021-02-02T16:13:12 | K1: =IF(J2="","",J2-J1) -> 00:00:17
H2: 669 | I2: =COUNTIF(外字登録一覧表!$Q$7:$Q$2499,文字イメージ作成!H2) -> 0 | J2: 2021-02-02T16:13:29
J3: 【Excelデータ使用外字チェックリスト】

Sheet Font_List (hidden)
C1: =TODAY() -> 2021-02-03
B3: 【定義済フォント名一覧表】
B5: フォント名 | C5: ="Font_List!B6:B"&COUNTA(B:B)+3 -> Font_List!B6:B193
A6: 3 | B6: Arial Unicode MS
A7: 4 | B7: BIZ UDPゴシック
A8: 5 | B8: BIZ UDP明朝 Medium
A9: 6 | B9: BIZ UDゴシック
A10: 7 | B10: BIZ UD明朝 Medium
A11: 8 | B11: EPSON Pゴシック W6
A12: 9 | B12: EPSON Pゴシック W7
A13: 10 | B13: EPSON ゴシック W6
A14: 11 | B14: EPSON ゴシック W7
A15: 12 | B15: EPSON 太角ゴシック体Ｂ
A16: 13 | B16: EPSON 太丸ゴシック体Ｂ
A17: 14 | B17: HGPｺﾞｼｯｸE
A18: 15 | B18: HGPｺﾞｼｯｸM
A19: 16 | B19: HGP教科書体
A20: 17 | B20: HGP行書体
A21: 18 | B21: HGP創英ﾌﾟﾚｾﾞﾝｽEB
A22: 19 | B22: HGP創英角ｺﾞｼｯｸUB
A23: 20 | B23: HGP創英角ﾎﾟｯﾌﾟ体
A24: 21 | B24: HGP明朝B
A25: 22 | B25: HGP明朝E
A26: 23 | B26: HGSｺﾞｼｯｸE
A27: 24 | B27: HGSｺﾞｼｯｸM
A28: 25 | B28: HGS教科書体
A29: 26 | B29: HGS行書体
A30: 27 | B30: HGS創英ﾌﾟﾚｾﾞﾝｽEB
A31: 28 | B31: HGS創英角ｺﾞｼｯｸUB
A32: 29 | B32: HGS創英角ﾎﾟｯﾌﾟ体
A33: 30 | B33: HGS明朝B
A34: 31 | B34: HGS明朝E
A35: 32 | B35: HGｺﾞｼｯｸE
A36: 33 | B36: HGｺﾞｼｯｸM
A37: 34 | B37: HG丸ｺﾞｼｯｸM-PRO
A38: 35 | B38: HG教科書体
A39: 36 | B39: HG行書体
A40: 37 | B40: HG正楷書体-PRO
A41: 38 | B41: HG創英ﾌﾟﾚｾﾞﾝｽEB
A42: 39 | B42: HG創英角ｺﾞｼｯｸUB
A43: 40 | B43: HG創英角ﾎﾟｯﾌﾟ体
A44: 41 | B44: HG明朝B
A45: 42 | B45: HG明朝E
A46: 43 | B46: Meiryo UI
A47: 44 | B47: ＭＳ Ｐゴシック
A48: 45 | B48: ＭＳ Ｐ明朝
A49: 46 | B49: MS UI Gothic
A50: 47 | B50: ＭＳ ゴシック
A51: 48 | B51: ＭＳ 明朝
A52: 49 | B52: UD デジタル 教科書体 N-B
A53: 50 | B53: UD デジタル 教科書体 NK-B
A54: 51 | B54: UD デジタル 教科書体 NK-R
A55: 52 | B55: UD デジタル 教科書体 NP-B
A56: 53 | B56: UD デジタル 教科書体 NP-R
A57: 54 | B57: UD デジタル 教科書体 N-R
A58: 55 | B58: Yu Gothic UI
A59: 56 | B59: Yu Gothic UI Light
A60: 57 | B60: Yu Gothic UI Semibold
A61: 58 | B61: Yu Gothic UI Semilight
A62: 59 | B62: メイリオ
A63: 60 | B63: 游ゴシック
A64: 61 | B64: 游ゴシック Light
A65: 62 | B65: 游ゴシック Medium
A66: 63 | B66: 游明朝
A67: 64 | B67: 游明朝 Demibold
A68: 65 | B68: 游明朝 Light
A69: 66 | B69: Malgun Gothic
A70: 67 | B70: Malgun Gothic Semilight
A71: 68 | B71: Microsoft JhengHei
A72: 69 | B72: Microsoft JhengHei Light
A73: 70 | B73: Microsoft JhengHei UI
A74: 71 | B74: Microsoft JhengHei UI Light
A75: 72 | B75: Microsoft YaHei
A76: 73 | B76: Microsoft YaHei Light
A77: 74 | B77: Microsoft YaHei UI
A78: 75 | B78: Microsoft YaHei UI Light
A79: 76 | B79: MingLiU_HKSCS-ExtB
A80: 77 | B80: MingLiU-ExtB
A81: 78 | B81: NSimSun
A82: 79 | B82: PMingLiU-ExtB
A83: 80 | B83: SimSun
A84: 81 | B84: SimSun-ExtB
A85: 82 | B85: Arial
A86: 83 | B86: Arial Black
A87: 84 | B87: Arial Narrow
A88: 85 | B88: Bahnschrift
A89: 86 | B89: Bahnschrift Condensed
A90: 87 | B90: Bahnschrift Light
A91: 88 | B91: Bahnschrift Light Condensed
A92: 89 | B92: Bahnschrift Light SemiCondensed
A93: 90 | B93: Bahnschrift SemiBold
A94: 91 | B94: Bahnschrift SemiBold Condensed
A95: 92 | B95: Bahnschrift SemiBold SemiConden
A96: 93 | B96: Bahnschrift SemiCondensed
A97: 94 | B97: Bahnschrift SemiLight
A98: 95 | B98: Bahnschrift SemiLight Condensed
A99: 96 | B99: Bahnschrift SemiLight SemiConde
A100: 97 | B100: Book Antiqua
A101: 98 | B101: Bookman Old Style
A102: 99 | B102: Bookshelf Symbol 7
A103: 100 | B103: Bradley Hand ITC
A104: 101 | B104: Calibri
A105: 102 | B105: Calibri Light
A106: 103 | B106: Cambria
A107: 104 | B107: Cambria Math
A108: 105 | B108: Candara
A109: 106 | B109: Candara Light
A110: 107 | B110: Century
A111: 108 | B111: Century Gothic
A112: 109 | B112: Comic Sans MS
A113: 110 | B113: Consolas
A114: 111 | B114: Constantia
A115: 112 | B115: Corbel
A116: 113 | B116: Corbel Light
A117: 114 | B117: Courier New
A118: 115 | B118: Ebrima
A119: 116 | B119: Franklin Gothic Medium
A120: 117 | B120: Freestyle Script
A121: 118 | B121: French Script MT
A122: 119 | B122: Gabriola
A123: 120 | B123: Gadugi
A124: 121 | B124: Garamond
A125: 122 | B125: Georgia
A126: 123 | B126: HoloLens MDL2 Assets
A127: 124 | B127: Impact
A128: 125 | B128: Ink Free
A129: 126 | B129: Javanese Text
A130: 127 | B130: Juice ITC
A131: 128 | B131: Kristen ITC
A132: 129 | B132: Leelawadee UI
A133: 130 | B133: Leelawadee UI Semilight
A134: 131 | B134: Lucida Bright
A135: 132 | B135: Lucida Console
A136: 133 | B136: Lucida Handwriting
A137: 134 | B137: Lucida Sans
A138: 135 | B138: Lucida Sans Typewriter
A139: 136 | B139: Lucida Sans Unicode
A140: 137 | B140: Marlett
A141: 138 | B141: Microsoft Himalaya
A142: 139 | B142: Microsoft New Tai Lue
A143: 140 | B143: Microsoft PhagsPa
A144: 141 | B144: Microsoft Sans Serif
A145: 142 | B145: Microsoft Tai Le
A146: 143 | B146: Microsoft Yi Baiti
A147: 144 | B147: Mistral
A148: 145 | B148: Mongolian Baiti
A149: 146 | B149: Monotype Corsiva
A150: 147 | B150: MS Outlook
A151: 148 | B151: MS Reference Sans Serif
A152: 149 | B152: MS Reference Specialty
A153: 150 | B153: MT Extra
A154: 151 | B154: MV Boli
A155: 152 | B155: Myanmar Text
A156: 153 | B156: Nirmala UI
A157: 154 | B157: Nirmala UI Semilight
A158: 155 | B158: OCRB
A159: 156 | B159: Open Sans
A160: 157 | B160: Open Sans Semibold
A161: 158 | B161: Palatino Linotype
A162: 159 | B162: Papyrus
A163: 160 | B163: Pristina
A164: 161 | B164: Segoe MDL2 Assets
A165: 162 | B165: Segoe Print
A166: 163 | B166: Segoe Script
A167: 164 | B167: Segoe UI
A168: 165 | B168: Segoe UI Black
A169: 166 | B169: Segoe UI Emoji
A170: 167 | B170: Segoe UI Historic
A171: 168 | B171: Segoe UI Light
A172: 169 | B172: Segoe UI Semibold
A173: 170 | B173: Segoe UI Semilight
A174: 171 | B174: Segoe UI Symbol
A175: 172 | B175: Sitka Banner
A176: 173 | B176: Sitka Display
A177: 174 | B177: Sitka Heading
A178: 175 | B178: Sitka Small
A179: 176 | B179: Sitka Subheading
A180: 177 | B180: Sitka Text
A181: 178 | B181: Sylfaen
A182: 179 | B182: Symbol
A183: 180 | B183: Tahoma
A184: 181 | B184: TeamViewer15
A185: 182 | B185: Tempus Sans ITC
A186: 183 | B186: Tera Special
A187: 184 | B187: Times New Roman
A188: 185 | B188: Trebuchet MS
A189: 186 | B189: Verdana
A190: 187 | B190: Webdings
A191: 188 | B191: Wingdings
A192: 189 | B192: Wingdings 2
A193: 190 | B193: Wingdings 3
